[Event "Early-Titled-Tuesday-Blitz-March-26-2024"]
[Site "Chess.com"]
[Date "2024.03.26"]
[Round "1"]
[White "Yurasova_Daria"]
[Black "djano"]
[Result "0-1"]
[WhiteElo "2309"]
[BlackElo "2648"]
[TimeControl "180+1"]
[EndTime "8:05:14 PDT"]
[Termination "djano won by resignation"]

1. d4 {[%clk 0:02:53.5]} 1... Nf6 {[%clk 0:02:59.5]} 2. Bg5 {[%clk 0:02:51.7]}
2... d5 {[%clk 0:02:58.2]} 3. Bxf6 {[%clk 0:02:51.2]} 3... gxf6 {[%clk
0:02:58.3]} 4. e3 {[%clk 0:02:52.1]} 4... c5 {[%clk 0:02:58.7]} 5. g3 {[%clk
0:02:53]} 5... Nc6 {[%clk 0:02:58.5]} 6. Ne2 {[%clk 0:02:52.5]} 6... cxd4 {[%clk
0:02:56.3]} 7. exd4 {[%clk 0:02:42.8]} 7... Bg4 {[%clk 0:02:55.5]} 8. c3 {[%clk
0:02:39.6]} 8... Bf3 {[%clk 0:02:53.7]} 9. Rg1 {[%clk 0:02:32]} 9... Qd7 {[%clk
0:02:46.9]} 10. Nd2 {[%clk 0:02:31.9]} 10... Bg4 {[%clk 0:02:45.8]} 11. Bg2
{[%clk 0:02:26.4]} 11... Bh6 {[%clk 0:02:41.8]} 12. Nb3 {[%clk 0:02:14.3]} 12...
O-O-O {[%clk 0:02:27.8]} 13. Nc5 {[%clk 0:02:13.8]} 13... Qc7 {[%clk 0:02:25.2]}
14. h3 {[%clk 0:02:01.5]} 14... Bh5 {[%clk 0:02:22.6]} 15. f4 {[%clk 0:01:59]}
15... Bg6 {[%clk 0:01:58.6]} 16. Qd2 {[%clk 0:01:57.5]} 16... e5 {[%clk
0:01:58.2]} 17. O-O-O {[%clk 0:01:55.1]} 17... Rhe8 {[%clk 0:01:53.4]} 18. Rgf1
{[%clk 0:01:47.3]} 18... exd4 {[%clk 0:01:50.9]} 19. cxd4 {[%clk 0:01:46.3]}
19... Rxe2 {[%clk 0:01:34.1]} 20. Qxe2 {[%clk 0:01:43.7]} 20... Nxd4 {[%clk
0:01:34.5]} 21. Rxd4 {[%clk 0:01:14.4]} 21... Qxc5+ {[%clk 0:01:34.1]} 22. Rc4
{[%clk 0:01:15.1]} 22... Qxc4+ {[%clk 0:01:23.8]} 23. Qxc4+ {[%clk 0:01:14.9]}
23... dxc4 {[%clk 0:01:24.7]} 24. b3 {[%clk 0:01:08.6]} 24... cxb3 {[%clk
0:01:22.6]} 25. axb3 {[%clk 0:01:08.6]} 25... Bf5 {[%clk 0:01:19.6]} 26. g4
{[%clk 0:01:05.7]} 26... Be6 {[%clk 0:01:18.6]} 27. Kc2 {[%clk 0:01:02.2]} 27...
Bd5 {[%clk 0:01:15.2]} 28. Bxd5 {[%clk 0:00:59.7]} 28... Rxd5 {[%clk 0:01:16.1]}
29. g5 {[%clk 0:00:57.1]} 29... Bg7 {[%clk 0:01:11.7]} 0-1

[Event "Early-Titled-Tuesday-Blitz-March-26-2024"]
[Site "Chess.com"]
[Date "2024.03.26"]
[Round "1"]
[White "shimastream"]
[Black "Zorbos"]
[Result "1-0"]
[WhiteElo "3041"]
[BlackElo "2538"]
[TimeControl "180+1"]
[EndTime "8:05:15 PDT"]
[Termination "shimastream won by resignation"]

1. e4 {[%clk 0:03:00.9]} 1... c5 {[%clk 0:02:59.9]} 2. d4 {[%clk 0:02:59.5]}
2... cxd4 {[%clk 0:02:59.4]} 3. Qxd4 {[%clk 0:03:00.4]} 3... Nc6 {[%clk
0:02:59.3]} 4. Qd3 {[%clk 0:03:00.6]} 4... g6 {[%clk 0:02:58.5]} 5. Nc3 {[%clk
0:03:00.4]} 5... Bg7 {[%clk 0:02:58.2]} 6. Nf3 {[%clk 0:02:58.1]} 6... d6 {[%clk
0:02:50.1]} 7. Be2 {[%clk 0:02:58]} 7... Nf6 {[%clk 0:02:49.8]} 8. O-O {[%clk
0:02:56.4]} 8... O-O {[%clk 0:02:49.9]} 9. Nd5 {[%clk 0:02:56.4]} 9... Bd7
{[%clk 0:02:28]} 10. c3 {[%clk 0:02:53.4]} 10... Rc8 {[%clk 0:02:26.5]} 11. Bg5
{[%clk 0:02:50.4]} 11... Nxd5 {[%clk 0:02:20.4]} 12. exd5 {[%clk 0:02:51.3]}
12... Ne5 {[%clk 0:02:20.9]} 13. Nxe5 {[%clk 0:02:51.4]} 13... Bxe5 {[%clk
0:02:20.8]} 14. Rae1 {[%clk 0:02:47]} 14... Bf5 {[%clk 0:02:20.6]} 15. Qd2
{[%clk 0:02:46.8]} 15... Qc7 {[%clk 0:02:13.8]} 16. h4 {[%clk 0:02:44.7]} 16...
Bg7 {[%clk 0:02:13.3]} 17. h5 {[%clk 0:02:43.1]} 17... Rfe8 {[%clk 0:01:59]} 18.
Bb5 {[%clk 0:02:21.6]} 18... Bd7 {[%clk 0:01:49.3]} 19. Bd3 {[%clk 0:02:21]}
19... e6 {[%clk 0:01:43.4]} 20. dxe6 {[%clk 0:02:16]} 20... Bxe6 {[%clk
0:01:41]} 21. h6 {[%clk 0:02:15.4]} 21... Bh8 {[%clk 0:01:40.7]} 22. a3 {[%clk
0:02:12.9]} 22... Qc5 {[%clk 0:01:31.4]} 23. Be3 {[%clk 0:02:12]} 23... Qc7
{[%clk 0:01:25.9]} 24. Rc1 {[%clk 0:02:03.6]} 24... b6 {[%clk 0:01:13.5]} 25.
Rfe1 {[%clk 0:02:02.4]} 25... d5 {[%clk 0:00:57.4]} 26. Bb5 {[%clk 0:02:00.1]}
26... Bd7 {[%clk 0:00:29.6]} 27. Qxd5 {[%clk 0:01:55.7]} 27... Bxb5 {[%clk
0:00:28.7]} 28. Qxb5 {[%clk 0:01:56.6]} 28... Qc4 {[%clk 0:00:20.1]} 29. Qxc4
{[%clk 0:01:53.2]} 29... Rxc4 {[%clk 0:00:20.3]} 30. Rcd1 {[%clk 0:01:53.9]}
30... Bf6 {[%clk 0:00:18.3]} 31. Rd7 {[%clk 0:01:53.3]} 31... Re7 {[%clk
0:00:17.3]} 32. Rd8+ {[%clk 0:01:52.8]} 1-0

[Event "Early-Titled-Tuesday-Blitz-March-26-2024"]
[Site "Chess.com"]
[Date "2024.03.26"]
[Round "1"]
[White "DishonorOnYourCow"]
[Black "mishanick"]
[Result "0-1"]
[WhiteElo "2551"]
[BlackElo "3098"]
[TimeControl "180+1"]
[EndTime "8:05:21 PDT"]
[Termination "mishanick won by resignation"]

1. d4 {[%clk 0:02:05.5]} 1... Nf6 {[%clk 0:02:59.8]} 2. c4 {[%clk 0:02:05.8]}
2... e6 {[%clk 0:03:00.1]} 3. Nf3 {[%clk 0:02:05.5]} 3... d5 {[%clk 0:03:00.4]}
4. Nc3 {[%clk 0:02:05.6]} 4... Nbd7 {[%clk 0:02:59.5]} 5. cxd5 {[%clk
0:02:04.8]} 5... exd5 {[%clk 0:02:59.2]} 6. Bf4 {[%clk 0:02:05.5]} 6... c6
{[%clk 0:02:56.4]} 7. e3 {[%clk 0:02:04.9]} 7... Nh5 {[%clk 0:02:56.6]} 8. Bg5
{[%clk 0:02:02.7]} 8... Be7 {[%clk 0:02:56.8]} 9. Bxe7 {[%clk 0:02:03]} 9...
Qxe7 {[%clk 0:02:57.7]} 10. Qc2 {[%clk 0:01:56.3]} 10... Nb6 {[%clk 0:02:57.5]}
11. Be2 {[%clk 0:01:50.8]} 11... g6 {[%clk 0:02:50.6]} 12. O-O {[%clk
0:01:49.7]} 12... Bf5 {[%clk 0:02:48.5]} 13. Bd3 {[%clk 0:01:46.1]} 13... Bxd3
{[%clk 0:02:48.5]} 14. Qxd3 {[%clk 0:01:46.8]} 14... O-O {[%clk 0:02:48.6]} 15.
h3 {[%clk 0:01:28.8]} 15... Rfe8 {[%clk 0:02:47.6]} 16. Nd2 {[%clk 0:01:17.5]}
16... Rad8 {[%clk 0:02:44.4]} 17. Rfe1 {[%clk 0:01:16.7]} 17... f5 {[%clk
0:02:43.8]} 18. a4 {[%clk 0:01:14.7]} 18... a5 {[%clk 0:02:43.4]} 19. Nf3 {[%clk
0:01:11.4]} 19... Nc4 {[%clk 0:02:32.8]} 20. b3 {[%clk 0:01:10.5]} 20... Nd6
{[%clk 0:02:33.4]} 21. Ne5 {[%clk 0:01:09.7]} 21... Nf6 {[%clk 0:02:33.5]} 22.
f4 {[%clk 0:01:05.7]} 22... Nde4 {[%clk 0:02:33.5]} 23. Nxe4 {[%clk 0:01:05.2]}
23... Nxe4 {[%clk 0:02:29.1]} 24. Rac1 {[%clk 0:00:57.5]} 24... Kh8 {[%clk
0:02:28.2]} 25. Qc2 {[%clk 0:00:52.7]} 25... Rg8 {[%clk 0:02:26.3]} 26. Rf1
{[%clk 0:00:47.9]} 26... Rg7 {[%clk 0:02:26.2]} 27. Qe2 {[%clk 0:00:42]} 27...
Ng3 {[%clk 0:02:22.5]} 28. Qe1 {[%clk 0:00:36.6]} 28... Nxf1 {[%clk 0:02:22.8]}
29. Kxf1 {[%clk 0:00:36.9]} 29... Ra8 {[%clk 0:02:17.7]} 30. Kg1 {[%clk
0:00:31.4]} 30... g5 {[%clk 0:02:17.4]} 31. fxg5 {[%clk 0:00:23.7]} 31... Qxg5
{[%clk 0:02:15.7]} 32. Qf2 {[%clk 0:00:19.3]} 32... h6 {[%clk 0:02:13.3]} 33.
Kh1 {[%clk 0:00:16.6]} 33... Kh7 {[%clk 0:02:12.4]} 34. Rg1 {[%clk 0:00:17.2]}
34... Rf8 {[%clk 0:02:07.5]} 35. Qc2 {[%clk 0:00:17.6]} 35... Kg8 {[%clk
0:02:04.7]} 36. g3 {[%clk 0:00:15.9]} 36... Qxe3 {[%clk 0:02:03.8]} 0-1

[Event "Early-Titled-Tuesday-Blitz-March-26-2024"]
[Site "Chess.com"]
[Date "2024.03.26"]
[Round "1"]
[White "Rashad_Zeynalli"]
[Black "Christ_is_alive"]
[Result "1-0"]
[WhiteElo "2673"]
[BlackElo "2335"]
[TimeControl "180+1"]
[EndTime "8:05:28 PDT"]
[Termination "Rashad_Zeynalli won by resignation"]

1. d4 {[%clk 0:02:56.2]} 1... Nf6 {[%clk 0:02:59.8]} 2. Bf4 {[%clk 0:02:55.7]}
2... g6 {[%clk 0:03:00]} 3. Nf3 {[%clk 0:02:54.9]} 3... Bg7 {[%clk 0:02:59.9]}
4. e3 {[%clk 0:02:55.5]} 4... O-O {[%clk 0:03:00]} 5. Be2 {[%clk 0:02:56.1]}
5... d6 {[%clk 0:03:00.4]} 6. h3 {[%clk 0:02:56.7]} 6... Nbd7 {[%clk 0:03:00.1]}
7. Bh2 {[%clk 0:02:57.2]} 7... b6 {[%clk 0:03:00.7]} 8. O-O {[%clk 0:02:57.1]}
8... Bb7 {[%clk 0:03:00.7]} 9. a4 {[%clk 0:02:57.2]} 9... a5 {[%clk 0:02:59.4]}
10. Na3 {[%clk 0:02:54.1]} 10... Ne4 {[%clk 0:02:59]} 11. Nb5 {[%clk 0:02:52.5]}
11... e5 {[%clk 0:02:54.6]} 12. c3 {[%clk 0:02:50.3]} 12... h6 {[%clk
0:02:38.9]} 13. Qc2 {[%clk 0:02:48.9]} 13... f5 {[%clk 0:02:17.4]} 14. Rfd1
{[%clk 0:02:44.9]} 14... Qc8 {[%clk 0:01:52.8]} 15. Bc4+ {[%clk 0:02:35.6]}
15... Kh7 {[%clk 0:01:42.9]} 16. Be6 {[%clk 0:02:34.9]} 16... c6 {[%clk
0:01:13.1]} 17. Na3 {[%clk 0:02:33.3]} 17... Qe8 {[%clk 0:01:11.7]} 18. Bxd7
{[%clk 0:02:32]} 18... Qxd7 {[%clk 0:01:11.8]} 19. dxe5 {[%clk 0:02:32.6]} 19...
d5 {[%clk 0:01:05.5]} 20. Nc4 {[%clk 0:02:31.5]} 20... Qc7 {[%clk 0:01:01.7]}
21. Nd6 {[%clk 0:02:22.7]} 21... Rad8 {[%clk 0:00:59.5]} 22. c4 {[%clk
0:02:20.1]} 22... Nxd6 {[%clk 0:00:39.2]} 23. exd6 {[%clk 0:02:18.6]} 23... Qd7
{[%clk 0:00:38.4]} 24. cxd5 {[%clk 0:02:18.2]} 24... cxd5 {[%clk 0:00:38.3]} 25.
Qc7 {[%clk 0:02:16.2]} 25... Rf7 {[%clk 0:00:37.2]} 26. Rac1 {[%clk 0:02:12.6]}
26... Bxb2 {[%clk 0:00:33.5]} 27. Rb1 {[%clk 0:02:08]} 27... Ba3 {[%clk
0:00:27.1]} 28. Rxb6 {[%clk 0:01:51.8]} 28... Qe6 {[%clk 0:00:15.4]} 29. Qxd8
{[%clk 0:01:38.4]} 1-0

[Event "Early-Titled-Tuesday-Blitz-March-26-2024"]
[Site "Chess.com"]
[Date "2024.03.26"]
[Round "1"]
[White "GlavkonVVS"]
[Black "Marielchessy"]
[Result "1-0"]
[WhiteElo "2643"]
[BlackElo "2301"]
[TimeControl "180+1"]
[EndTime "8:05:35 PDT"]
[Termination "GlavkonVVS won by resignation"]

1. c4 {[%clk 0:02:59.6]} 1... e5 {[%clk 0:02:58.9]} 2. Nc3 {[%clk 0:02:56.8]}
2... Nc6 {[%clk 0:02:59]} 3. g3 {[%clk 0:02:56.5]} 3... d6 {[%clk 0:02:59.5]} 4.
Bg2 {[%clk 0:02:56.5]} 4... Be6 {[%clk 0:03:00.1]} 5. d3 {[%clk 0:02:55.7]} 5...
Qd7 {[%clk 0:03:00.6]} 6. h3 {[%clk 0:02:54.1]} 6... g6 {[%clk 0:03:00.5]} 7.
Nf3 {[%clk 0:02:54.2]} 7... Bg7 {[%clk 0:03:00.6]} 8. Ng5 {[%clk 0:02:54.2]}
8... Bf5 {[%clk 0:02:57.2]} 9. g4 {[%clk 0:02:53.8]} 9... Be6 {[%clk 0:02:57.4]}
10. Bd2 {[%clk 0:02:51.3]} 10... Nge7 {[%clk 0:02:55.5]} 11. Rb1 {[%clk
0:02:50.6]} 11... O-O {[%clk 0:02:55.3]} 12. b4 {[%clk 0:02:50]} 12... h6 {[%clk
0:02:46.6]} 13. Nxe6 {[%clk 0:02:49.9]} 13... fxe6 {[%clk 0:02:46.6]} 14. b5
{[%clk 0:02:48.3]} 14... Nd8 {[%clk 0:02:46.5]} 15. O-O {[%clk 0:02:45.6]} 15...
g5 {[%clk 0:02:46.2]} 16. e3 {[%clk 0:02:44.6]} 16... Ng6 {[%clk 0:02:46.1]} 17.
a4 {[%clk 0:02:31.4]} 17... Nh4 {[%clk 0:02:44.7]} 18. Bh1 {[%clk 0:02:30.8]}
18... c6 {[%clk 0:02:42.3]} 19. a5 {[%clk 0:02:30.1]} 19... d5 {[%clk
0:02:42.2]} 20. a6 {[%clk 0:02:30]} 20... dxc4 {[%clk 0:02:28.5]} 21. dxc4
{[%clk 0:02:28]} 21... cxb5 {[%clk 0:02:26.7]} 22. axb7 {[%clk 0:02:17.8]} 22...
Nxb7 {[%clk 0:02:27]} 23. Rxb5 {[%clk 0:02:17.4]} 23... Nd6 {[%clk 0:02:27]} 24.
Be1 {[%clk 0:02:01.5]} 24... Qc7 {[%clk 0:02:14.2]} 25. Rb1 {[%clk 0:01:43.5]}
25... Nxc4 {[%clk 0:02:11.3]} 26. Nb5 {[%clk 0:01:34.9]} 26... Qf7 {[%clk
0:02:07.7]} 27. Qe2 {[%clk 0:01:23.4]} 27... Rac8 {[%clk 0:02:04.8]} 28. Bb4
{[%clk 0:01:18.5]} 28... Rfd8 {[%clk 0:02:00.3]} 29. Rfd1 {[%clk 0:01:14.2]}
29... a6 {[%clk 0:01:55]} 30. Nc3 {[%clk 0:01:01.1]} 30... e4 {[%clk 0:01:48.9]}
31. Rxd8+ {[%clk 0:00:55.3]} 31... Rxd8 {[%clk 0:01:46.2]} 32. Qxc4 {[%clk
0:00:55.5]} 32... Bxc3 {[%clk 0:01:35.3]} 33. Bxc3 {[%clk 0:00:54.5]} 33... Rf8
{[%clk 0:01:26.2]} 34. Rb2 {[%clk 0:00:44.5]} 34... Nf3+ {[%clk 0:01:23.3]} 35.
Bxf3 {[%clk 0:00:44.4]} 35... Qxf3 {[%clk 0:01:23.3]} 36. Qxe6+ {[%clk
0:00:43.8]} 1-0

[Event "Early-Titled-Tuesday-Blitz-March-26-2024"]
[Site "Chess.com"]
[Date "2024.03.26"]
[Round "1"]
[White "kai_nov"]
[Black "Yeritsyaan"]
[Result "0-1"]
[WhiteElo "2339"]
[BlackElo "2674"]
[TimeControl "180+1"]
[EndTime "8:05:37 PDT"]
[Termination "Yeritsyaan won by resignation"]

1. e4 {[%clk 0:02:59.8]} 1... c5 {[%clk 0:02:53.5]} 2. Nf3 {[%clk 0:02:54.1]}
2... d6 {[%clk 0:02:53]} 3. c3 {[%clk 0:02:44.8]} 3... Nf6 {[%clk 0:02:49.7]} 4.
Be2 {[%clk 0:02:44.4]} 4... g6 {[%clk 0:02:46.3]} 5. O-O {[%clk 0:02:42.7]} 5...
Bg7 {[%clk 0:02:42.7]} 6. d3 {[%clk 0:02:42.1]} 6... O-O {[%clk 0:02:42.3]} 7.
Be3 {[%clk 0:02:42.7]} 7... Nc6 {[%clk 0:02:42.1]} 8. h3 {[%clk 0:02:42.1]} 8...
a6 {[%clk 0:02:41.8]} 9. Nbd2 {[%clk 0:02:42]} 9... Rb8 {[%clk 0:02:41.8]} 10.
a4 {[%clk 0:02:42.1]} 10... b5 {[%clk 0:02:32.7]} 11. Qc2 {[%clk 0:02:41.2]}
11... b4 {[%clk 0:02:21.4]} 12. Nb3 {[%clk 0:02:31.4]} 12... Be6 {[%clk
0:02:05.6]} 13. Nbd2 {[%clk 0:02:26.2]} 13... h6 {[%clk 0:01:57.3]} 14. d4
{[%clk 0:02:22.6]} 14... bxc3 {[%clk 0:01:54.3]} 15. bxc3 {[%clk 0:02:21.4]}
15... cxd4 {[%clk 0:01:53.6]} 16. Nxd4 {[%clk 0:02:10.8]} 16... Nxd4 {[%clk
0:01:52.6]} 17. cxd4 {[%clk 0:02:10.8]} 17... d5 {[%clk 0:01:49.4]} 18. e5
{[%clk 0:02:08.3]} 18... Nd7 {[%clk 0:01:44.7]} 19. Bxa6 {[%clk 0:02:08.1]}
19... Qa5 {[%clk 0:01:34.8]} 20. Bb5 {[%clk 0:02:07]} 20... Rfc8 {[%clk
0:01:35.1]} 21. Qd3 {[%clk 0:02:05.7]} 21... Nb6 {[%clk 0:01:33.7]} 22. Rfb1
{[%clk 0:01:55.1]} 22... Bf5 {[%clk 0:01:32.8]} 23. Qe2 {[%clk 0:01:45.6]} 23...
Bxb1 {[%clk 0:01:33.1]} 24. Rxb1 {[%clk 0:01:45.3]} 24... e6 {[%clk 0:01:33.1]}
25. Nb3 {[%clk 0:01:38]} 25... Qc3 {[%clk 0:01:17.8]} 26. Bd2 {[%clk 0:01:30.1]}
26... Qc2 {[%clk 0:01:12.3]} 27. Bd3 {[%clk 0:01:29.2]} 27... Qa2 {[%clk
0:01:10.8]} 28. a5 {[%clk 0:01:27.7]} 28... Nc4 {[%clk 0:01:09.8]} 29. Qd1
{[%clk 0:01:08.6]} 29... Nb2 {[%clk 0:01:02.4]} 30. Qe2 {[%clk 0:01:01.9]} 30...
Rxb3 {[%clk 0:00:58.8]} 31. Ba6 {[%clk 0:00:55.9]} 31... Qxb1+ {[%clk
0:00:57.5]} 0-1

[Event "Early-Titled-Tuesday-Blitz-March-26-2024"]
[Site "Chess.com"]
[Date "2024.03.26"]
[Round "1"]
[White "NikitaShnadrygin"]
[Black "hsd2016"]
[Result "1-0"]
[WhiteElo "2648"]
[BlackElo "2314"]
[TimeControl "180+1"]
[EndTime "8:05:37 PDT"]
[Termination "NikitaShnadrygin won by resignation"]

1. e4 {[%clk 0:02:59.1]} 1... e5 {[%clk 0:02:52.9]} 2. Nf3 {[%clk 0:02:57.1]}
2... Nc6 {[%clk 0:02:53.7]} 3. Bb5 {[%clk 0:02:56.9]} 3... a6 {[%clk 0:02:53.5]}
4. Ba4 {[%clk 0:02:56.8]} 4... Nf6 {[%clk 0:02:53.5]} 5. O-O {[%clk 0:02:56.6]}
5... Be7 {[%clk 0:02:52.7]} 6. Re1 {[%clk 0:02:55.9]} 6... b5 {[%clk 0:02:52.7]}
7. Bb3 {[%clk 0:02:55.9]} 7... O-O {[%clk 0:02:53.1]} 8. c3 {[%clk 0:02:56.6]}
8... d6 {[%clk 0:02:49.2]} 9. h3 {[%clk 0:02:51.7]} 9... Na5 {[%clk 0:02:49.6]}
10. Bc2 {[%clk 0:02:51.8]} 10... c5 {[%clk 0:02:50.3]} 11. d4 {[%clk 0:02:52.5]}
11... cxd4 {[%clk 0:02:50.8]} 12. cxd4 {[%clk 0:02:52.7]} 12... Nc6 {[%clk
0:02:51.6]} 13. Nc3 {[%clk 0:02:44.8]} 13... Bb7 {[%clk 0:02:51.6]} 14. Be3
{[%clk 0:02:31.4]} 14... Rc8 {[%clk 0:02:51.3]} 15. Rc1 {[%clk 0:02:22.5]} 15...
Nxd4 {[%clk 0:02:45]} 16. Nxd4 {[%clk 0:02:20.9]} 16... exd4 {[%clk 0:02:45.6]}
17. Bxd4 {[%clk 0:02:10.8]} 17... d5 {[%clk 0:02:45.5]} 18. e5 {[%clk
0:02:07.8]} 18... Ne4 {[%clk 0:02:44.3]} 19. Qf3 {[%clk 0:01:41.2]} 19... f5
{[%clk 0:02:32.1]} 20. exf6 {[%clk 0:01:29.1]} 20... Bxf6 {[%clk 0:02:32.2]} 21.
Bxf6 {[%clk 0:00:52.7]} 21... Rxf6 {[%clk 0:02:30.9]} 22. Qd3 {[%clk 0:00:44.3]}
22... Qb6 {[%clk 0:02:12.3]} 23. Nxe4 {[%clk 0:00:41.4]} 23... dxe4 {[%clk
0:02:12.5]} 24. Bb3+ {[%clk 0:00:42.1]} 24... Kh8 {[%clk 0:02:10.2]} 25. Rxc8+
{[%clk 0:00:41.7]} 25... Bxc8 {[%clk 0:02:10.5]} 26. Qe3 {[%clk 0:00:27.2]}
26... Qxe3 {[%clk 0:02:07.9]} 27. Rxe3 {[%clk 0:00:28.1]} 27... Bb7 {[%clk
0:02:01.4]} 28. f3 {[%clk 0:00:28.3]} 28... Rf5 {[%clk 0:01:36]} 29. Bc2 {[%clk
0:00:20.6]} 29... Re5 {[%clk 0:01:32]} 30. Bxe4 {[%clk 0:00:20.7]} 30... g6
{[%clk 0:01:29.7]} 31. Kf2 {[%clk 0:00:20.8]} 31... Kg7 {[%clk 0:01:29.4]} 32.
Bxb7 {[%clk 0:00:20.9]} 1-0

[Event "Early-Titled-Tuesday-Blitz-March-26-2024"]
[Site "Chess.com"]
[Date "2024.03.26"]
[Round "1"]
[White "RebelJohnny"]
[Black "Aural1011"]
[Result "1-0"]
[WhiteElo "2560"]
[BlackElo "1772"]
[TimeControl "180+1"]
[EndTime "8:05:49 PDT"]
[Termination "RebelJohnny won on time"]

1. f4 {[%clk 0:02:57.4]} 1... d5 {[%clk 0:02:58.7]} 2. Nf3 {[%clk 0:02:57.3]}
2... e6 {[%clk 0:02:58.9]} 3. e3 {[%clk 0:02:58]} 3... c5 {[%clk 0:02:59.2]} 4.
b3 {[%clk 0:02:58.4]} 4... Nc6 {[%clk 0:02:59.9]} 5. Bb5 {[%clk 0:02:58.8]} 5...
Nf6 {[%clk 0:02:57.1]} 6. Bb2 {[%clk 0:02:58.5]} 6... Be7 {[%clk 0:02:53.4]} 7.
Ne5 {[%clk 0:02:55.9]} 7... Bd7 {[%clk 0:02:52.8]} 8. Bxc6 {[%clk 0:02:42.5]}
8... Bxc6 {[%clk 0:02:51.2]} 9. O-O {[%clk 0:02:43.4]} 9... O-O {[%clk
0:02:49.1]} 10. Qe1 {[%clk 0:02:42.4]} 10... Qb6 {[%clk 0:02:45.3]} 11. Qg3
{[%clk 0:02:39.7]} 11... Ne4 {[%clk 0:02:38.4]} 12. Qh3 {[%clk 0:02:22]} 12...
Bd6 {[%clk 0:02:16.7]} 13. d3 {[%clk 0:02:19.5]} 13... Nf6 {[%clk 0:02:10.6]}
14. Nd2 {[%clk 0:02:18.3]} 14... Nd7 {[%clk 0:01:06.1]} 15. Ndf3 {[%clk
0:02:13.4]} 15... c4 {[%clk 0:00:50.5]} 16. Bd4 {[%clk 0:02:07.2]} 16... Bc5
{[%clk 0:00:48.2]} 17. bxc4 {[%clk 0:01:58.3]} 17... Bxd4 {[%clk 0:00:41.9]} 18.
Nxd4 {[%clk 0:01:59.2]} 18... Nxe5 {[%clk 0:00:39]} 19. fxe5 {[%clk 0:02:00.1]}
19... dxc4 {[%clk 0:00:38.9]} 20. Rab1 {[%clk 0:01:56.1]} 20... Qc5 {[%clk
0:00:34.7]} 21. Qg3 {[%clk 0:01:50.9]} 21... Rad8 {[%clk 0:00:18.5]} 22. Rf2
{[%clk 0:01:37.3]} 22... h6 {[%clk 0:00:12]} 23. Rbf1 {[%clk 0:01:33.5]} 23...
cxd3 {[%clk 0:00:03.4]} 24. cxd3 {[%clk 0:01:32.3]} 24... Qd5 {[%clk 0:00:03.7]}
25. Rf6 {[%clk 0:01:19.9]} 1-0

[Event "Early-Titled-Tuesday-Blitz-March-26-2024"]
[Site "Chess.com"]
[Date "2024.03.26"]
[Round "1"]
[White "Boudicca64"]
[Black "Russian_berezka"]
[Result "0-1"]
[WhiteElo "1835"]
[BlackElo "2560"]
[TimeControl "180+1"]
[EndTime "8:05:50 PDT"]
[Termination "Russian_berezka won by resignation"]

1. e4 {[%clk 0:02:56.2]} 1... g6 {[%clk 0:02:13]} 2. d4 {[%clk 0:02:53.1]} 2...
Bg7 {[%clk 0:02:12.8]} 3. Be3 {[%clk 0:02:52.3]} 3... c5 {[%clk 0:02:08.4]} 4.
c3 {[%clk 0:02:49.9]} 4... cxd4 {[%clk 0:02:06.7]} 5. cxd4 {[%clk 0:02:48.3]}
5... d6 {[%clk 0:02:07.2]} 6. f4 {[%clk 0:02:45.9]} 6... Nf6 {[%clk 0:02:07.1]}
7. Nc3 {[%clk 0:02:44.3]} 7... Ng4 {[%clk 0:02:04.1]} 8. Bc1 {[%clk 0:02:38.4]}
8... Nc6 {[%clk 0:02:01.4]} 9. Nf3 {[%clk 0:02:36.7]} 9... O-O {[%clk
0:01:58.2]} 10. h3 {[%clk 0:02:35.4]} 10... Nf6 {[%clk 0:01:57.2]} 11. Be3
{[%clk 0:02:33.7]} 11... d5 {[%clk 0:01:55]} 12. e5 {[%clk 0:02:30.9]} 12... Ne4
{[%clk 0:01:55]} 13. Nxe4 {[%clk 0:02:28.8]} 13... dxe4 {[%clk 0:01:55.9]} 14.
Nd2 {[%clk 0:02:28.4]} 14... Nxd4 {[%clk 0:01:55.9]} 15. Nxe4 {[%clk 0:02:23.4]}
15... Nf5 {[%clk 0:01:55.6]} 16. Bf2 {[%clk 0:02:12.9]} 16... Bd7 {[%clk
0:01:52.2]} 17. Bd3 {[%clk 0:01:57.5]} 17... Bc6 {[%clk 0:01:51.5]} 18. O-O
{[%clk 0:01:55]} 18... Qd7 {[%clk 0:01:49.4]} 19. Qe2 {[%clk 0:01:47.2]} 19...
Nd4 {[%clk 0:01:49.3]} 20. Qe3 {[%clk 0:01:35.1]} 20... Rad8 {[%clk 0:01:48.7]}
21. Rad1 {[%clk 0:01:29]} 21... Nf5 {[%clk 0:01:47.8]} 22. Qe2 {[%clk
0:01:26.2]} 22... Qc7 {[%clk 0:01:44.4]} 23. Bc4 {[%clk 0:01:05.5]} 23... a6
{[%clk 0:01:40.5]} 24. e6 {[%clk 0:01:03.5]} 24... f6 {[%clk 0:01:37.5]} 25. Rc1
{[%clk 0:00:44.9]} 25... Qxf4 {[%clk 0:01:36.2]} 26. Nc5 {[%clk 0:00:19.5]}
26... Rd2 {[%clk 0:01:29.7]} 27. Be3 {[%clk 0:00:12.6]} 27... Qxe3+ {[%clk
0:01:25.9]} 28. Qxe3 {[%clk 0:00:10.7]} 28... Rxg2+ {[%clk 0:01:25.7]} 0-1